Cogmind - Beta 13 X1 @@@ ROGUE MODE // 2023.07.01 @ 19:51:48 Player: cptwinky Result: Destroyed by C-40 Crusher with Compactor Performance ------------- Evolutions (3) 1500 Regions Visited (10) 2000 Robots Destroyed (171) 855 Value Destroyed (8526) 8526 Prototype IDs (17) 340 Alien Tech Used (0) 0 Bonus (1373) 1373 TOTAL SCORE: 14594 Bonus ------- High Alert Combat Kills 1513 Follower Combat Kills 1220 Entered Garrisons 400 Friendly Fire -1760 Cogmind --------- Core Integrity 0/700 Matter 223/300 Energy 100/100 System Corruption 11% Temperature Cool (0) Movement Core (50) Location -7/Waste Parts ------- > --- POWER (1) -------- (None) > --- PROPULSION (4) --- (None) > --- UTILITY (6) ------ (None) > --- WEAPON (2) ------- (None) > --- INVENTORY (5) ---- Compact Wheel Improved Transmission Jammer Layered Heavy Armor Plating Light EM Pulse Cannon Peak State ------------ > --- POWER ------------ Light Nuclear Core > --- PROPULSION ------- Light Treads Light Treads Light Treads Advanced Treads > --- UTILITY ---------- Huge Storage Unit Advanced Visual Processing Unit Layered Heavy Armor Plating Advanced System Shield Advanced System Restoration Module > --- WEAPON ----------- Advanced Beam Cannon Heavy Particle Cannon > --- INVENTORY -------- Light Nuclear Core Improved Heat Sink Improved Sensor Array Improved Signal Interpreter Improved Transmission Jammer Hardened Medium Armor Plating Improved Medium Armor Plating Layered Heavy Armor Plating Hacking Suite Component Analysis Suite Light EM Pulse Cannon Light EM Pulse Cannon Light EM Pulse Cannon Light EM Pulse Cannon Ion Cannon Ion Burst Cannon KE Penetrator Gauss Cannon Mass Driver Heavy Missile Launcher Heavy Missile Launcher Improved Datajack Makeshift Sword [Rating: 52] Favorites ----------- Power Subdweller Power Source Engine Subdweller Power Source Power Core Light Nuclear Core Propulsion Light Treads Treads Light Treads Leg Aluminum Leg Wheel Armored Wheel Utility Huge Storage Unit Device Improved Heat Sink Storage Huge Storage Unit Processor Advanced Visual Processing Unit Hackware Makeshift System Shield Protection Medium Armor Plating Weapon Subdweller Beam Cannon Energy Gun Medium Laser Energy Cannon Subdweller Beam Cannon Ballistic Gun High-powered Shotgun Ballistic Cannon Light Cannon Launcher Grenade Launcher Slashing Weapon Makeshift Sword Special Melee Weapon Improved Datajack Build | -11 -10 -10 -8 -8 -8 -8 -8 -8 -7 -7 ------- Run | Jun Mat Sub Mat Gar Mat Gar Mat Sto Fac Was Slots Evolved 6 | . . . 4 . . . . . 2 . Power . | . . . . . . . . . . . Propulsion 2 | . . . 1 . . . . . 1 . Utility 4 | . . . 3 . . . . . 1 . Weapon . | . . . . . . . . . . . Parts Attached 170 | 2 15 33 7 3 8 39 11 27 25 . Power 7 | . 1 1 . . 1 1 1 1 1 . Engine 5 | . 1 1 . . 1 1 1 . . . Core 2 | . . . . . . . . 1 1 . Reactor . | . . . . . . . . . . . Propulsion 26 | 2 2 3 2 1 . 5 1 4 6 . Treads 24 | 2 2 2 2 1 . 5 1 4 5 . Leg . | . . . . . . . . . . . Wheel 2 | . . 1 . . . . . . 1 . Hover . | . . . . . . . . . . . Flight . | . . . . . . . . . . . Utility 53 | . 5 12 3 . 4 13 1 6 9 . Device 22 | . . 5 1 . 2 6 . 2 6 . Storage 3 | . 2 1 . . . . . . . . Processor 3 | . . . 1 . . 1 . 1 . . Hackware 3 | . . . 1 . 1 . . . 1 . Protection 22 | . 3 6 . . 1 6 1 3 2 . Artifact . | . . . . . . . . . . . Weapon 84 | . 7 17 2 2 3 20 8 16 9 . Energy Gun 3 | . 3 . . . . . . . . . Energy Cannon 46 | . 1 14 1 1 2 12 2 7 6 . Ballistic Gun 10 | . . . . . 1 . 3 6 . . Ballistic Cannon 4 | . 2 . . . . . 1 . 1 . Launcher 16 | . 1 2 1 . . 8 2 2 . . Special Weapon . | . . . . . . . . . . . Impact Weapon . | . . . . . . . . . . . Slashing Weapon 4 | . . 1 . 1 . . . 1 1 . Piercing Weapon . | . . . . . . . . . . . Special Melee Weapon 1 | . . . . . . . . . 1 . Unidentified Prototypes 6 | . . 1 . . 1 1 . 2 1 . Parts Lost 28 | . . . . . 1 10 1 2 8 6 Power 3 | . . . . . . 1 . . 2 . Propulsion 12 | . . . . . . 5 1 1 4 1 Utility 9 | . . . . . 1 4 . 1 . 3 Weapon 4 | . . . . . . . . . 2 2 Highest Loss Streak 6 | . . . . . 1 4 1 1 2 6 To Critical Strikes . | . . . . . . . . . . . Average Slot Usage (%) 97 | . 99 100 99 100 100 96 100 95 88 51 Engine 9 | . 14 14 9 9 9 9 9 6 . . Treads 25 | . 27 27 17 18 27 25 27 26 26 10 Wheel 1 | . . . 9 8 . . . . . 4 Device 7 | . . 7 9 9 11 12 6 5 7 5 Storage 10 | . 14 14 9 9 9 9 9 9 7 4 Processor 3 | . . . 9 9 4 2 9 9 7 5 Hackware 5 | . . . 9 9 11 9 9 5 6 5 Protection 9 | . 13 6 9 9 9 10 11 12 7 5 Energy Gun 1 | . 9 . . . . . . . . . Energy Cannon 15 | . 4 20 16 17 14 16 12 10 13 5 Ballistic Gun 1 | . 2 . . . 3 . 5 7 . . Ballistic Cannon 3 | . 11 7 . . . . . . . 4 Naked Turns 12 | . . . . . . . . . . 12 Heaviest Build 120 | 12 36 108 109 109 113 120 112 117 119 114 Greatest Support 82 | 40 40 40 12 60 60 60 60 60 82 16 Greatest Overweight (x) 9 | . 1 8 9 9 1 2 1 1 7 7 Average Overweight (x) 1 | . . . 8 8 1 1 1 1 1 7 Largest Inventory Capacity 25 | 8 15 25 25 25 25 25 25 25 25 25 Average Capacity 21 | 8 13 16 25 25 25 25 25 25 25 17 Most Carried 25 | 6 15 19 18 25 25 25 25 25 25 25 Average Carried 19 | 6 12 15 16 21 24 22 24 23 24 17 Final Capacity 25 | 8 15 25 25 25 25 25 25 25 25 5 Final Carried 25 | 6 15 19 17 25 24 25 23 24 24 5 Class Distribution -------------------- 30% | Scavenger-Mutant 28% | Mutant 23% | Derelict-Mutant 14% | Subdweller-Mutant Dominant Class ---------------- Mutant | -10/Materials Mutant | -10/Subcaves Derelict-Mutant | -8/Materials Derelict-Mutant | -8/Garrison Subdweller-Mutant | -8/Materials Subdweller-Mutant | -8/Garrison Scavenger-Mutant | -8/Materials Scavenger-Mutant | -8/Storage Scavenger-Mutant | -7/Factory Mutant | -7/Waste Resources | -11 -10 -10 -8 -8 -8 -8 -8 -8 -7 -7 ----------- Run | Jun Mat Sub Mat Gar Mat Gar Mat Sto Fac Was Matter Collected 2772 | 220 327 430 . 130 59 559 168 610 269 . Remotely . | . . . . . . . . . . . Salvage Created 6223 | . 421 128 . 257 639 1339 1043 1474 922 . Parts 319 | . 25 9 . 15 34 73 49 74 40 . Haulers Intercepted 11 | . 2 . . . 3 . 3 3 . . Recyclers Shooed 1 | . . . . . . . . 1 . . Parts Field Recycled . | . . . . . . . . . . . Retrieved Matter . | . . . . . . . . . . . Parts Self-Destructed 12 | . . 12 . . . . . . . . Prevented . | . . . . . . . . . . . Kills | -11 -10 -10 -8 -8 -8 -8 -8 -8 -7 -7 ------- Run | Jun Mat Sub Mat Gar Mat Gar Mat Sto Fac Was Combat Hostiles Destroyed 133 | . 14 9 . 5 8 36 19 26 16 . Melee 2 | . . . . . 1 . . 1 . . Guns 16 | . 7 . . . . . 3 6 . . Cannons 68 | . 4 2 . 4 5 20 7 11 15 . AOE 40 | . 3 7 . . . 16 7 7 . . Classes Destroyed 16 | . 4 3 . 1 1 3 2 2 . . Worker 5 | . . . . . . . . 2 3 . Builder 2 | . . . . . . . . 2 . . Hauler 11 | . 2 . . . 3 . 3 3 . . Recycler 6 | . . . . . . . 1 3 2 . Mechanic 2 | . . . . . . . 2 . . . Operator 2 | . 1 . . . 1 . . . . . Turret 2 | . . 2 . . . . . . . . Watcher 8 | . . . . . 3 1 3 1 . . Swarmer 20 | . 6 7 . . . 5 2 . . . Grunt 69 | . 8 1 . 2 5 17 12 12 12 . Brawler 5 | . . . . . . 1 2 2 . . Duelist 7 | . . . . . . 4 . 3 . . Sentry 20 | . . 1 . 2 3 3 2 8 1 . Hunter 6 | . . . . . . 4 1 1 . . Programmer 6 | . . . . 1 . 2 . . 3 . Cobbler 1 | . . 1 . . . . . . . . Best Kill Streak 11 | . 3 6 . 2 3 8 11 8 4 . Combat Bots Only 8 | . 3 6 . 2 2 8 4 5 3 . Max Kills in Single Turn 5 | . 3 2 . 1 2 3 5 3 2 . Gunslinging . | . . . . . . . . . . . Exploded 4 | . 3 2 . . . 3 4 2 . . Melee 1 | . . . . . 1 . . 1 . . Uniques/NPCs Destroyed . | . . . . . . . . . . . Combat | -11 -10 -10 -8 -8 -8 -8 -8 -8 -7 -7 -------- Run | Jun Mat Sub Mat Gar Mat Gar Mat Sto Fac Was Damage Taken 8201 | . 572 607 . 102 503 1974 460 1370 1721 892 Core 1426 | . 65 128 . 29 105 216 51 105 150 577 Absorbed by Shields 69 | . . . . 22 . 47 . . . . Regen/Repaired (Parts) 1009 | . . . 61 . . . . 209 739 . Core Remaining (%) 43 | 100 . 22 . . . . . 8 . . Volleys Fired 450 | . 52 47 2 18 44 91 46 69 72 9 Largest 2 | . 2 2 2 2 2 2 2 2 2 2 Hottest 160 | . 95 160 110 160 160 160 160 136 143 123 Shots Fired 768 | . 101 62 4 28 72 142 75 128 141 15 Gun 131 | . 69 . . . 3 . 18 41 . . Cannon 597 | . 31 57 2 28 69 122 52 80 141 15 Launcher 40 | . 1 5 2 . . 20 5 7 . . Special . | . . . . . . . . . . . Kinetic 152 | . 51 15 . . 3 . 20 41 13 9 Thermal 559 | . 49 42 2 28 69 122 50 64 127 6 Explosive 40 | . 1 5 2 . . 20 5 7 . . Electromagnetic 17 | . . . . . . . . 16 1 . Robot Hit Streak 18 | . 14 8 . 6 12 11 10 18 8 12 Robot Miss Streak 5 | . 4 2 . 3 4 4 4 5 4 2 Penetration Max . | . . . . . . . . . . . Secondary Targets . | . . . . . . . . . . . Shots Hit Robots 452 | . 64 23 . 11 32 81 46 98 85 12 Core Hits 254 | . 25 17 1 4 13 61 38 61 32 2 Critical Kills 7 | . . . . 1 2 . 2 1 1 . Critical Parts Destroyed 1 | . . . . . . . . 1 . . Critical Strikes 10 | . 1 . . 1 2 . 2 3 1 . Burn 1 | . 1 . . . . . . . . . Meltdown 7 | . . . . 1 2 . 2 1 1 . Destroy 1 | . . . . . . . . 1 . . Sever 1 | . . . . . . . . 1 . . Melee Attacks 11 | . . 1 . 2 . . . 8 . . Impact . | . . . . . . . . . . . Slashing 11 | . . 1 . 2 . . . 8 . . Piercing . | . . . . . . . . . . . Sneak Attacks 8 | . . . . . . . . 8 . . Combat Hostiles . | . . . . . . . . . . . Follow-up Attacks . | . . . . . . . . . . . Damage Inflicted 15815 | . 1097 881 67 318 999 3387 2177 4117 2375 397 Guns 1474 | . 569 . . . . . 302 603 . . Cannons 9031 | . 312 430 27 318 961 2100 822 1432 2300 329 Explosions 4351 | . 167 451 40 . . 1287 976 1430 . . Melee 572 | . . . . . . . . 572 . . Ramming 387 | . 49 . . . 38 . 77 80 75 68 Kinetic 2122 | . 527 187 . . . . 302 603 274 229 Thermal 8151 | . 354 243 27 318 961 2100 822 1200 2026 100 Explosive 4292 | . 167 451 40 . . 1287 976 1371 . . Electromagnetic 291 | . . . . . . . . 291 . . Impact . | . . . . . . . . . . . Slashing 572 | . . . . . . . . 572 . . Piercing . | . . . . . . . . . . . Highest Corruption 11 | . . . . . . 1 . 6 4 11 Average Corruption 2 | . . . . . . 1 . 4 1 7 Corruption Purged 7 | . . . . . . 1 . . 6 . Corruption Blocked . | . . . . . . . . . . . Effects 25 | . . . . . . 4 . 17 3 1 Message Errors 3 | . . . . . . . . 3 . . Matter Fused 10 | . . . . . . 1 . 7 1 1 Heat Flow Errors 5 | . . . . . . 1 . 2 2 . Energy Discharges 1 | . . . . . . 1 . . . . Parts Rejected 1 | . . . . . . . . 1 . . Parts Fused 1 | . . . . . . 1 . . . . Data Loss (minor) 3 | . . . . . . . . 3 . . Weapon Failures 1 | . . . . . . . . 1 . . Overload Shots . | . . . . . . . . . . . Overflow Damage 336 | . . 29 . . 8 50 11 204 34 . Projectiles 130 | . . 14 . . 8 47 11 16 34 . Explosions 95 | . . 15 . . . 3 . 77 . . Melee 111 | . . . . . . . . 111 . . Knockbacks 13 | . 5 1 . . . . 1 . 6 . Impact 3 | . . . . . . . 1 . 2 . Kinetic 10 | . 5 1 . . . . . . 4 . Secondary . | . . . . . . . . . . . Self-Inflicted Damage 337 | . . . . . . 244 . 68 . 25 Shots 10 | . . . . . . 8 . 2 . . Rammed 68 | . 12 . . . 5 . 9 14 8 20 Targets Rammed 74 | . 13 . . . 6 . 10 14 11 20 Kicked . | . . . . . . . . . . . Crushed 6 | . 1 . . . 1 . 1 . 3 . Highest Temperature 471 | . 327 24 24 197 339 264 297 467 471 54 Average Temperature 95 | . 110 6 16 75 94 58 72 84 145 27 Received Heat Transfer 2448 | . 192 210 . 51 234 195 198 639 729 . Effects 13 | . 3 . . . 1 1 1 1 6 . Shutdowns 1 | . . . . . . . . 1 . . Energy Bleed 5 | . 1 . . . . . 1 . 3 . Interference 5 | . 2 . . . . 1 . . 2 . Matter Decay 1 | . . . . . . . . . 1 . Short Circuit 1 | . . . . . 1 . . . . . Siege Activations . | . . . . . . . . . . . Robots Corrupted . | . . . . . . . . . . . Combat Hostiles . | . . . . . . . . . . . Parts Fried 3 | . . . . . . . . 3 . . Impact Corruptions . | . . . . . . . . . . . Robots Melted 7 | . . . . 1 2 . 2 1 1 . Combat Hostiles 7 | . . . . 1 2 . 2 1 1 . Parts Melted 18 | . 1 . . 1 2 5 4 2 3 . Heat Transferred 12069 | . 1110 481 37 387 1258 2664 1073 1951 2960 148 Parts Sabotaged . | . . . . . . . . . . . Parts Stolen . | . . . . . . . . . . . Parts Stripped . | . . . . . . . . . . . Power Chain Reactions 1 | . . . . . . . . 1 . . Missiles Intercepted . | . . . . . . . . . . . Alert | -11 -10 -10 -8 -8 -8 -8 -8 -8 -7 -7 ------- Run | Jun Mat Sub Mat Gar Mat Gar Mat Sto Fac Was Peak Influence 1982 | . 283 . 189 1561 760 1982 1154 659 504 135 Initial 965 | . . . 165 122 760 160 965 329 299 134 Average 588 | . 88 . 166 1039 387 965 1001 390 331 104 Maximum Alert Level 5 | . 1 . . 4 3 5 4 2 2 . Low Security (%) 22 | 100 95 . 100 6 . 5 . 21 . 100 Level 1 27 | . 4 . . . 58 18 . 36 81 . Level 2 17 | . . . . 9 39 15 . 42 18 . Level 3 17 | . . . . 45 1 15 81 . . . Level 4 11 | . . . . 38 . 26 18 . . . Level 5 4 | . . . . . . 19 . . . . High Security . | . . . . . . . . . . . Max Security . | . . . . . . . . . . . Squads Dispatched 27 | . 3 . 2 . 3 . 5 7 7 . Investigation 12 | . 1 . 2 . 2 . 1 2 4 . Extermination 2 | . . . . . . . . . 2 . Reinforcement 5 | . 2 . . . . . 1 1 1 . Assault 4 | . . . . . . . 3 1 . . Garrison 4 | . . . . . 1 . . 3 . . Intercept . | . . . . . . . . . . . Searches Triggered . | . . . . . . . . . . . Construction Impeded 2 | . . . . . . . . 1 1 . Haulers Reinforced . | . . . . . . . . . . . Active Scanning Responses . | . . . . . . . . . . . Cargo Convoy Interrupts . | . . . . . . . . . . . Stealth | -11 -10 -10 -8 -8 -8 -8 -8 -8 -7 -7 --------- Run | Jun Mat Sub Mat Gar Mat Gar Mat Sto Fac Was Distress Signals 10 | . . . . . 2 . 4 3 1 . Communications Jammed 2 | . . . . . . . . . 2 . Distress Signals 2 | . . . . . . . . . 2 . Times Spotted 260 | . 28 46 . 25 17 36 34 44 27 3 Peak Tracking Total 7 | . 5 6 1 6 5 7 5 4 4 3 Tactical Retreats 10 | . 2 2 . . . 2 1 1 2 . Traps | -11 -10 -10 -8 -8 -8 -8 -8 -8 -7 -7 ------- Run | Jun Mat Sub Mat Gar Mat Gar Mat Sto Fac Was Traps Triggered 18 | . 4 . . 3 . 6 . 4 1 . Indirectly . | . . . . . . . . . . . Trap Hack Attempts 15 | . . . . . . . . . 15 . Triggered . | . . . . . . . . . . . Disarmed 6 | . . . . . . . . 6 . . Reprogrammed 4 | . . . . . . . . . 4 . Reused 1 | . . . . . . . . . 1 . Traps Extracted . | . . . . . . . . . . . Installed . | . . . . . . . . . . . Triggered 1 | . . . . . . . . . 1 . Most Traps Carried 1 | . . 1 1 1 . . . . . . Machines | -11 -10 -10 -8 -8 -8 -8 -8 -8 -7 -7 ---------- Run | Jun Mat Sub Mat Gar Mat Gar Mat Sto Fac Was Machines Disabled 39 | . 1 2 . 13 2 12 3 6 . . Max in Single Turn 3 | . 1 1 . 1 2 2 1 3 . . Garrison Relay 11 | . . . . 7 . 4 . . . . Phase Generator 1 | . . . . . . 1 . . . . Machines Repaired . | . . . . . . . . . . . Machines Sabotaged . | . . . . . . . . . . . Overloaded Fab Kills . | . . . . . . . . . . . Hacking | -11 -10 -10 -8 -8 -8 -8 -8 -8 -7 -7 --------- Run | Jun Mat Sub Mat Gar Mat Gar Mat Sto Fac Was Machines Accessed 47 | . 7 2 3 1 7 2 6 13 6 . Terminals 29 | . 4 . 1 1 4 2 5 10 2 . Fabricators . | . . . . . . . . . . . Repair Stations 6 | . 1 . 1 . . . . 2 2 . Recycling Units 6 | . 2 . . . 2 . 1 1 . . Scanalyzers 1 | . . . . . . . . . 1 . Garrison Access 3 | . . . 1 . 1 . . . 1 . Total Hacks 162 | . 15 7 14 3 31 5 19 44 24 . Successful 57 | . 3 7 6 . 12 1 5 15 8 . Failed 105 | . 12 . 8 3 19 4 14 29 16 . Catastrophic 29 | . 3 . 2 . 4 3 5 4 8 . Database Lockouts . | . . . . . . . . . . . Manual 80 | . 7 . 9 . 18 4 12 24 6 . Terminals 98 | . 9 . 6 3 18 5 16 34 7 . Fabricators . | . . . . . . . . . . . Repair Stations 18 | . 2 . 3 . . . . 6 7 . Recycling Units 20 | . 4 . . . 9 . 3 4 . . Scanalyzers 7 | . . . . . . . . . 7 . Garrison Access 12 | . . . 5 . 4 . . . 3 . Terminal Hacks 31 | . 2 7 2 . 6 1 4 8 1 . Record 6 | . . 6 . . . . . . . . Robot Analysis 5 | . 2 . 2 . 1 . . . . . Open Door 3 | . . . . . . . . 3 . . Branch Access Points 1 | . . . . . . . 1 . . . Terminal Index 1 | . . . . . 1 . . . . . Alert Level 2 | . . . . . . . . 1 1 . Unreport Threat 8 | . . . . . 3 . 3 2 . . Locate Traps 1 | . . . . . . . . 1 . . Disarm Traps 1 | . . . . . . . . 1 . . Zone Layout 1 | . . . . . 1 . . . . . Garrison Registry 1 | . . . . . . 1 . . . . Derelict Proto ID Bank 1 | . . 1 . . . . . . . . Fabricator Hacks . | . . . . . . . . . . . Repair Station Hacks 10 | . . . 2 . . . . 6 2 . Scan Component 5 | . . . 1 . . . . 3 1 . Repair 5 | . . . 1 . . . . 3 1 . Recycling Unit Hacks 2 | . 1 . . . 1 . . . . . Retrieve Components 2 | . 1 . . . 1 . . . . . Scanalyzer 5 | . . . . . . . . . 5 . Insert Component 2 | . . . . . . . . . 2 . Analyze 3 | . . . . . . . . . 3 . Garrison Access Hacks 2 | . . . 1 . 1 . . . . . Unlock Access 2 | . . . 1 . 1 . . . . . Unauthorized Hacks 7 | . . . 1 . 4 . 1 1 . . Terminals 3 | . . . . . 1 . 1 1 . . Botnet 3 | . . . . . 1 . 1 1 . . Fabricators . | . . . . . . . . . . . Repair Stations . | . . . . . . . . . . . Recycling Units 2 | . . . . . 2 . . . . . Reject 2 | . . . . . 2 . . . . . Scanalyzers . | . . . . . . . . . . . Garrison Access 2 | . . . 1 . 1 . . . . . Reprogram 2 | . . . 1 . 1 . . . . . Data Cores Recovered 1 | . . . . . 1 . . . . . Used . | . . . . . . . . . . . Hacking Detections 38 | . 7 . 2 1 6 2 6 9 5 . Full Trace Events 11 | . . . 1 1 1 1 1 2 4 . Feedback Events . | . . . . . . . . . . . Feedback Blocked . | . . . . . . . . . . . Robot Schematics Acquired . | . . . . . . . . . . . Robots Built . | . . . . . . . . . . . Authchips . | . . . . . . . . . . . Time . | . . . . . . . . . . . Total Robot Build Rating . | . . . . . . . . . . . Part Schematics Acquired 2 | . . . . . . . . . 2 . Parts Built . | . . . . . . . . . . . Authchips . | . . . . . . . . . . . Time . | . . . . . . . . . . . Total Part Build Rating . | . . . . . . . . . . . Parts Repaired 5 | . . . 1 . . . . 3 1 . Time 168 | . . . 26 . . . . 114 28 . Parts Recycled . | . . . . . . . . . . . Recycled Matter . | . . . . . . . . . . . Retrieved Matter . | . . . . . . . . . . . Retrieved Components 10 | . 2 . . . 8 . . . . . Parts Scanalyzed 2 | . . . . . . . . . 2 . Part Schematics Acquired 2 | . . . . . . . . . 2 . Parts Damaged . | . . . . . . . . . . . Bothacking | -11 -10 -10 -8 -8 -8 -8 -8 -8 -7 -7 ------------ Run | Jun Mat Sub Mat Gar Mat Gar Mat Sto Fac Was Used RIF Installer . | . . . . . . . . . . . Robots Hacked . | . . . . . . . . . . . Non-combat . | . . . . . . . . . . . Combat . | . . . . . . . . . . . Robot Hacks Applied . | . . . . . . . . . . . Relay Couplers Released 48 | . . . . 31 . 17 . . . . Machine Destruction 48 | . . . . 31 . 17 . . . . Fabnet Peak Effective % . | . . . . . . . . . . . Robots Rewired . | . . . . . . . . . . . Allies Hacked 2 | . . . . 2 . . . . . . Hacks Repelled 1 | . . . . . . . . . 1 . Allies | -11 -10 -10 -8 -8 -8 -8 -8 -8 -7 -7 -------- Run | Jun Mat Sub Mat Gar Mat Gar Mat Sto Fac Was Total Allies 35 | . . 19 3 . 1 . . 11 . 1 Largest Group 18 | . . 15 18 18 1 1 . 11 11 1 Highest-Rated Group 333 | . . 285 333 333 15 15 . 273 234 31 Highest-Rated Ally 100 | . . 19 19 19 15 15 . 100 61 31 Total Orders . | . . . . . . . . . . . Ally Attacks 292 | . . 29 . 161 . 4 . 16 76 6 Total Damage 4560 | . . 473 . 2632 . 60 . 470 820 105 Kills 51 | . . 6 . 31 . . . 5 9 . Allies Corrupted . | . . . . . . . . . . . Allies Melted . | . . . . . . . . . . . Intel | -11 -10 -10 -8 -8 -8 -8 -8 -8 -7 -7 ------- Run | Jun Mat Sub Mat Gar Mat Gar Mat Sto Fac Was Robot Analysis Total 5 | . 2 . 2 . 1 . . . . . Derelict Logs Recovered 3 | . . 3 . . . . . . . . Drone Launches . | . . . . . . . . . . . Drone Recoveries . | . . . . . . . . . . . Exploration | -11 -10 -10 -8 -8 -8 -8 -8 -8 -7 -7 ------------- Run | Jun Mat Sub Mat Gar Mat Gar Mat Sto Fac Was Turns Passed 17260 | 13 1825 5053 378 1402 1594 2596 1254 1537 1546 62 Spaces Moved 6494 | 7 923 2323 156 532 346 882 409 448 464 4 Core . | . . . . . . . . . . . Treads 5696 | 7 923 2237 . 32 346 882 409 448 412 . Legs . | . . . . . . . . . . . Wheels 798 | . . 86 156 500 . . . . 52 4 Hover . | . . . . . . . . . . . Flight . | . . . . . . . . . . . Fastest Speed 160 | 160 160 160 210 210 246 243 243 240 205 205 Average Speed 215 | 160 160 202 221 224 246 253 243 240 235 205 Slowest Speed 340 | 160 240 340 225 246 246 325 243 243 312 205 Overloaded Moves . | . . . . . . . . . . . Propulsion Burnouts . | . . . . . . . . . . . Robots Hopped . | . . . . . . . . . . . Cave-ins Triggered . | . . . . . . . . . . . Exploration Rate (%) 46 | 2 99 84 11 51 40 81 42 71 17 14 Regions Visited 10 Branch Regions 2 Pre-discovered Areas 1 | . . 1 . . . . . . . . Known Exits Taken 3 | . . . 1 . 1 . 1 . . . Unknown Exits Taken 4 | 1 1 1 . . . . . 1 . . Scrap Searched 15 | . . 15 . . . . . . . . Spaces Dug 125 | . 8 7 8 . 12 32 16 42 . . Terrain Destroyed 366 | . 8 23 15 . 32 156 51 77 3 1 Melee . | . . . . . . . . . . . Projectile 60 | . . . 1 . 32 6 17 . 3 1 AOE 306 | . 8 23 14 . . 150 34 77 . . Terrain Rammed . | . . . . . . . . . . . Walls Destroyed . | . . . . . . . . . . . Machines Disabled . | . . . . . . . . . . . Actions | -11 -10 -10 -8 -8 -8 -8 -8 -8 -7 -7 --------- Run | Jun Mat Sub Mat Gar Mat Gar Mat Sto Fac Was Total 8887 | 8 1165 2596 183 711 1008 1099 578 744 760 35 Wait 1487 | . 126 169 17 121 593 50 92 162 157 . Move 6483 | 6 922 2322 155 531 345 879 408 447 464 4 Hop . | . . . . . . . . . . . Pick Up 86 | . 20 11 2 11 5 16 4 6 11 . Fast Attach 32 | . 7 4 1 1 2 7 1 8 1 . Attach 29 | . . . 4 . 2 9 4 2 8 . Detach 11 | . 1 . . . 2 2 2 3 . 1 Swap 109 | 2 8 29 2 2 4 23 6 17 16 . Drop 70 | . 16 13 . 5 5 12 5 8 5 1 Fire 450 | . 52 47 2 18 44 91 46 69 72 9 Melee 11 | . . 1 . 2 . . . 8 . . Ram 16 | . . . . . . . . . . 16 Kick . | . . . . . . . . . . . Crush 58 | . 13 . . . 6 . 10 14 11 4 Escape Stasis 29 | . . . . 19 . 10 . . . . Rewire 1 | . . . . 1 . . . . . . Trap 15 | . . . . . . . . . 15 . Miscellaneous . | . . . . . . . . . . . Route ------- -11/Junkyard -10/Materials (discovered 5 exits: [*Mat x3] / [*Min] / *Sub) -10/Subcaves (discovered 2 exits: *Mat / [*Rec]) -8/Materials (discovered 2 exits: *Sto / Gar) -8/Garrison (discovered 2 exits: *Mat x2) -8/Materials (discovered 2 exits: *Fac / Gar) -8/Garrison (discovered 3 exits: *Mat x3) -8/Materials (discovered 3 exits: *Fac / *Sto x2) -8/Storage -7/Factory -7/Waste History --------- Turn | Location | Event 4 | -11/Junkyard | Discovered new exit (range 2) 14 | -11/Junkyard | Entered Materials 317 | -10/Materials | Discovered new exit (range 13) 328 | -10/Materials | Build established: Mutant 600 | -10/Materials | Derelicts attacked the area 1039 | -10/Materials | Discovered new exit (range 4) 1194 | -10/Materials | Discovered new exit (range 10) 1610 | -10/Materials | Discovered new exit (range 15) 1824 | -10/Materials | Discovered new exit (range 10) 1839 | -10/Materials | Entered Subcaves 1858 | -10/Subcaves | Learned location of Storage (-8) 1871 | -10/Subcaves | Learned Materials trap positions 2019 | -10/Subcaves | Shifting Twisted Machinery released Sub. Optics 2026 | -10/Subcaves | Shifting Twisted Machinery released Sub. Machine Gun 2026 | -10/Subcaves | Discovered new exit (range 14) 2363 | -10/Subcaves | Visited triangular shrine 2375 | -10/Subcaves | Found Prototype Device 2413 | -10/Subcaves | Core integrity fell below 50% 2417 | -10/Subcaves | Identified V3-11A's Pendant 2422 | -10/Subcaves | Befriended Subdweller 2427 | -10/Subcaves | Befriended Subdweller 2496 | -10/Subcaves | Disturbed a concealed Subdweller 2502 | -10/Subcaves | Befriended Subdweller 2541 | -10/Subcaves | Disturbed a concealed Subdweller 2546 | -10/Subcaves | Befriended Subdweller 2622 | -10/Subcaves | Visited 4L-MR0's lab 3199 | -10/Subcaves | Discovered new exit (range 14) 3250 | -10/Subcaves | A Subdweller sparked back to life 3250 | -10/Subcaves | A Subdweller sparked back to life 3256 | -10/Subcaves | Befriended Subdweller 3256 | -10/Subcaves | Befriended Subdweller 3256 | -10/Subcaves | Befriended Subdweller 3267 | -10/Subcaves | A swath of the cavern ceiling suddenly collapsed 3551 | -10/Subcaves | Befriended Subdweller 3551 | -10/Subcaves | Befriended Subdweller 3686 | -10/Subcaves | Befriended Subdweller 3736 | -10/Subcaves | Befriended Subdweller 3766 | -10/Subcaves | Befriended Subdweller 3931 | -10/Subcaves | Befriended Subdweller 4088 | -10/Subcaves | Shifting Twisted Machinery released Battle Rifle 4114 | -10/Subcaves | Shifting Twisted Machinery released Sub. Monowheel 4220 | -10/Subcaves | Visited Clippyterm 4225 | -10/Subcaves | Learned Factory stockpile data 4302 | -10/Subcaves | Befriended Subdweller 4302 | -10/Subcaves | Befriended Subdweller 4317 | -10/Subcaves | Befriended Subdweller 4743 | -10/Subcaves | Build established: Derelict-Mutant 4817 | -10/Subcaves | Befriended Subdweller 5147 | -10/Subcaves | Befriended Subdweller 5147 | -10/Subcaves | Befriended Subdweller 6892 | -10/Subcaves | Entered Materials 6892 | -8/Materials | Accompanied by 15 allies 6892 | -8/Materials | Evolved 4 slots: Propulsion x1, Utility x3 6893 | -8/Materials | Identified exit to Storage 6894 | -8/Materials | Loaded intel: 21 trap records 7100 | -8/Materials | Repaired Lgt. Treads 7263 | -8/Materials | Identified exit to Garrison 7270 | -8/Materials | Entered Garrison 7270 | -8/Garrison | Accompanied by 18 allies 7358 | -8/Garrison | Triggered checkpoint 7358 | -8/Garrison | Triggered checkpoint 7480 | -8/Garrison | Triggered checkpoint 7484 | -8/Garrison | Triggered checkpoint 7789 | -8/Garrison | Garrison Relay disabled 7976 | -8/Garrison | Garrison Relay disabled 8100 | -8/Garrison | Discovered new exit (range 8) 8127 | -8/Garrison | Garrison Relay disabled 8133 | -8/Garrison | P-60 Hacker assimilated allied T0-TX8(R) 8134 | -8/Garrison | Garrison Relay disabled 8176 | -8/Garrison | Garrison Relay disabled 8189 | -8/Garrison | Garrison Relay disabled 8399 | -8/Garrison | Discovered new exit (range 10) 8456 | -8/Garrison | Triggered checkpoint 8516 | -8/Garrison | Triggered checkpoint 8522 | -8/Garrison | Garrison Relay disabled 8672 | -8/Garrison | Entered Materials 8948 | -8/Materials | Build established: Subdweller-Mutant 9058 | -8/Materials | Discovered new exit (range 11) 9693 | -8/Materials | Identified exit to Garrison 10014 | -8/Materials | Build established: Scavenger-Mutant 10266 | -8/Materials | Entered Garrison 10266 | -8/Garrison | Accompanied by 1 ally 10308 | -8/Garrison | Triggered checkpoint 10405 | -8/Garrison | Garrison Relay disabled 10593 | -8/Garrison | Lost 4 parts (1n3u) 10882 | -8/Garrison | Triggered checkpoint 10924 | -8/Garrison | Garrison Relay disabled 11063 | -8/Garrison | Triggered checkpoint 11110 | -8/Garrison | Garrison Relay disabled 11207 | -8/Garrison | Discovered new exit (range 12) 11281 | -8/Garrison | Phase Generator disabled 11387 | -8/Garrison | Build established: Subdweller-Mutant 11478 | -8/Garrison | Discovered new exit (range 55) 11478 | -8/Garrison | Discovered new exit (range 17) 11478 | -8/Garrison | Discovered new exit (range 68) 11589 | -8/Garrison | Triggered checkpoint 11589 | -8/Garrison | Triggered checkpoint 11612 | -8/Garrison | Triggered checkpoint 11647 | -8/Garrison | Destroyed 8 combat bots 11759 | -8/Garrison | Core integrity fell below 50% 12295 | -8/Garrison | Garrison Relay disabled 12362 | -8/Garrison | Attempted to access garrison exit controls, blocked by remote lockdown 12473 | -8/Garrison | Build established: Scavenger-Mutant 12551 | -8/Garrison | Attempted to access garrison exit controls, blocked by remote lockdown 12862 | -8/Garrison | Entered Materials 13662 | -8/Materials | First assault squad dispatched 13730 | -8/Materials | Discovered new exit (range 3) 14116 | -8/Materials | Entered Storage 14363 | -8/Storage | Repaired Lgt. Treads 14408 | -8/Storage | Repaired Imp. Medium Armor Plating 14910 | -8/Storage | Core integrity fell below 20% 14924 | -8/Storage | Garrison activated, responded to threat 15283 | -8/Storage | Repaired Hvy. Missile Launcher 15316 | -8/Storage | First assault squad dispatched 15364 | -8/Storage | Met 01-MTF 15539 | -8/Storage | Assisted by bots powering up and referring to "LRC-V3" 15554 | -8/Storage | Discovered new exit (range 20) 15653 | -8/Storage | Entered Factory 15653 | -7/Factory | Accompanied by 11 allies (01-MTF) 15653 | -7/Factory | Evolved 2 slots: Propulsion x1, Utility x1 15658 | -7/Factory | 01-MTF left 15828 | -7/Factory | Build established: Commander-Mutant 16250 | -7/Factory | Build established: Scavenger-Mutant 16748 | -7/Factory | Repaired Lyr. Heavy Armor Plating 17199 | -7/Factory | Sucked down chute 17199 | -7/Factory | Entered Waste 17200 | -7/Waste | Met a frightened Derelict 17206 | -7/Waste | Spotted C-40 Crusher 17212 | -7/Waste | Spotted C-40 Crusher 17214 | -7/Waste | EMP discharged 17223 | -7/Waste | Spotted C-40 Crusher 17234 | -7/Waste | Crushed by Compactor (1 part destroyed) 17239 | -7/Waste | Crushed by Compactor (1 part destroyed) 17240 | -7/Waste | Crushed by Compactor (1 part destroyed) 17242 | -7/Waste | Crushed by Compactor (1 part destroyed, 1 dropped) 17248 | -7/Waste | Crushed by Compactor (1 part destroyed, 1 dropped) 17249 | -7/Waste | Crushed by Compactor (1 part destroyed) 17253 | -7/Waste | Core integrity fell below 50% 17255 | -7/Waste | System corruption reached 10% 17258 | -7/Waste | Core integrity fell below 20% 17261 | -7/Waste | Destroyed by C-40 Crusher with Compactor Last Messages --------------- 17248_ Adv. Visual Processing Unit crushed. 17248_ Imp. Heat Sink crushed. 17249_ Slammed into C-40 Crusher. 17249_ Lyr. Heavy Armor Plating crushed. 17249_ Imp. Heat Sink crushed. 17249_ Adv. System Shield crushed. 17250_ Slammed into C-40 Crusher. 17250_ Destabilizing: System corrupted (+2). 17251_ Slammed into C-40 Crusher. 17252_ Hrd. Medium Armor Plating crushed. 17252_ Hvy. Missile Launcher crushed. 17252_ Slammed into C-40 Crusher. 17253_ KE Penetrator crushed. 17253_ Lgt. EM Pulse Cannon crushed. 17253_ Ion Burst Cannon crushed. 17254_ Slammed into C-40 Crusher. 17254_ Destabilizing: System corrupted (+2). 17255_ Slammed into C-40 Crusher. 17257_ Destabilizing: Core damaged (-14). 17258_ Slammed into C-40 Crusher. Map ----- +----------------------------------------------------+ | ??????????????????????????????????????????????? | | ??????????????????????????????????????????????? | | ??????????????????????????????????????????????? | | ??????????????????????????????????????????????? | | ??????????????????????????????????????????????? | | ??????????????????????????????????????????????? | | ??????????????????????????????????????????????? | | ??????????????????????????????????????????????? | | ??????????????????????????????????????????????? | | ??????????????????????????????????????????????? | | ??????????????????????????????????????????????? | | ??????????????????????????????????????????????? | | ??????????????????????????????????????????????? | | ??????????????????????????????????????????????? | | ??????????????????????????????????????????????? | | ??????????????????????????????????????????????? | | ??????????????????????????????????????????????? | | ??????????????????????????????????????????????? | | ??????????????????????????????????????????????? | | ?????????????############?????????????????????? | | ?????????????# #???????#?????????????? | | ?????????????# #????? #?????????????? | | ?????????????# % #### ##;#####??????? | | ?????????????# ]]CC % ????? | | ?????????????# !/]CC ????? | | ?????????????# !]@CC ????? | | ?????????????# /CCCC ????? | | ?????????????# CC #### ######????????? | | ?????????????# #?????? #?????????????? | | ?????????????# #?????????????????????? | | ?????????????############?????????????????????? | | ??????????????????????????????????????????????? | | ??????????????????????????????????????????????? | | ??????????????????????????????????????????????? | | ??????????????????????????????????????????????? | | ??????????????????????????????????????????????? | | ??????????????????????????????????????????????? | | ??????????????????????????????????????????????? | | ??????????????????????????????????????????????? | | ??????????????????????????????????????????????? | | ??????????????????????????????????????????????? | | ??????????????????????????????????????????????? | | ??????????????????????????????????????????????? | | ??????????????????????????????????????????????? | | ??????????????????????????????????????????????? | | ??????????????????????????????????????????????? | | ??????????????????????????????????????????????? | | ??????????????????????????????????????????????? | | ??????????????????????????????????????????????? | | ??????????????????????????????????????????????? | +----------------------------------------------------+ Best States ------------- Heat Dissipation 59 Coolant Potential 50 Energy Generation 14 Energy Capacity 280 Matter Stores 300 Matter Capacity 300 Sight Range 20 Terrain Scan Density 10 Jamming Range 14 Armor Coverage 600 Evasion (%) 40 Targeting Accuracy 6 Core Analysis 6 Recoil Reduction 4 Offensive Hacking 10 Defensive Hacking 14 Item Schematics ----------------- Adv. System Restoration Module | -7/Factory | Scanalyzed Lyr. Heavy Armor Plating | -7/Factory | Scanalyzed Robot Schematics ------------------ None Fabricated ------------ Nothing Alien Tech Used ----------------- None Achievements -------------- None Challenges ------------ None Game ------ Seed DispersionContainmentNetwork Manual? 0 Play Time 01:10:59 Cumulative 1321.5 hours Start 2023.07.01 @ 18:38:11 End 2023.07.01 @ 19:51:48 Sessions 1 Manual Loads 0 Difficulty Rogue Special Mode None Game No. 951 Rogue 947 Adventurer 4 Explorer 0 Win Type - Total 150 Types 112/10/10/6/2/1/1/5/3 Lore% 95 Gallery% 97 Achievement% 98 Wizard Run 0 Options --------- ASCII 0 Keyboard 1 Movement Vi Keybinds 0 Fullscreen 0 Font 20/X11 Map View 76x50 Tactical HUD 1 Map Filters NONE Filters NONE Steam 1 RUN: 2e8599e8-7635-411d-8854-1d8f221c2a83